bitfinex/quotes_BTCUSD_20210402
["timestamp","ask_amount","ask_price","bid_price","bid_amount"]
[1617367493277,0.252483,59435.0,59430.0,0.168305]
[1617367493474,0.252483,59435.0,59431.0,0.0750817]
[1617367493475,0.567638,59434.0,59431.0,0.0750817]
[1617367493674,0.387638,59432.0,59431.0,0.0750817]
[1617367493877,0.387638,59432.0,59431.0,0.0700817]
[1617367493878,0.557638,59432.0,59431.0,0.0700817]
[1617367494072,0.557638,59432.0,59431.0,0.08162431]
[1617367494282,0.810114,59432.0,59430.0,0.294547]
[1617367494485,0.607638,59431.0,59430.0,0.168305]
[1617367494681,1.128558,59431.0,59430.0,0.168305]
[1617367495753,1.128558,59431.0,59423.0,0.126272]
[1617367495952,0.387638,59427.0,59423.0,0.126272]
[1617367496152,0.3162,59430.0,59423.0,0.126272]
[1617367496153,0.387638,59424.0,59423.0,0.126272]
[1617367496553,0.387638,59424.0,59423.0,0.20839663]
[1617367497762,0.4,59444.0,59423.0,0.56739663]
[1617367497961,0.165,59424.0,59423.0,1.06876263]
[1617367498161,0.4,59444.0,59431.0,0.161]
[1617367498363,0.6475,59447.0,59433.0,0.004]
[1617367498554,0.6475,59447.0,59433.0,0.13022]
[1617367498755,0.28,59446.0,59434.0,0.08208162]
[1617367499163,0.252452,59440.0,59435.0,0.0054]
[1617367499358,0.252452,59440.0,59434.0,0.13668162]
[1617367499555,0.252452,59440.0,59434.0,0.08668162]
[1617367502359,0.252452,59440.0,59437.0,1.886]
[1617367502562,0.89992,59447.0,59437.0,2.323638]
[1617367502761,0.6475,59447.0,59438.0,0.32810132]
[1617367502985,0.6475,59447.0,59446.0,0.154]
[1617367503190,0.547638,59447.0,59446.0,1.29715541]
[1617367503387,0.16,59447.0,59446.0,1.29715541]
[1617367503584,0.00196336,59472.0,59447.0,3.72]
[1617367503585,0.737266,59449.0,59447.0,3.72]
[1617367503788,0.569032,59449.0,59448.0,1.45929892]
[1617367503990,0.569032,59449.0,59448.0,1.12166092]
[1617367504192,0.252364,59461.0,59448.0,1.50929892]
[1617367504393,0.254364,59461.0,59449.0,0.00303724]
[1617367504582,0.254364,59461.0,59458.0,0.16]
[1617367504784,0.254364,59461.0,59458.0,0.698799]
[1617367504987,0.254364,59461.0,59459.0,0.08391702]
[1617367505186,0.254364,59461.0,59460.0,0.05]
[1617367505383,0.254364,59461.0,59460.0,0.07611199]
[1617367505599,0.254364,59461.0,59460.0,0.05]
[1617367505796,0.254364,59461.0,59460.0,0.12583742]
[1617367506005,0.002,59461.0,59460.0,0.17583742]
[1617367507000,0.002,59461.0,59460.0,0.17453742]
[1617367507406,0.002,59461.0,59460.0,0.07453742]
[1617367507606,0.002,59461.0,59458.0,0.126169]
[1617367507803,0.249346,59462.0,59458.0,0.126169]
[1617367508003,0.251346,59462.0,59458.0,0.20268732]
[1617367508631,0.387638,59459.0,59458.0,0.20268732]
[1617367509032,0.532638,59459.0,59458.0,0.20268732]
[1617367510239,0.5346096,59459.0,59458.0,0.20268732]
[1617367510838,0.532638,59459.0,59458.0,0.20268732]
[1617367511035,0.532638,59459.0,59458.0,0.36068732]
[1617367511239,0.532638,59459.0,59458.0,0.46068732]
[1617367513236,0.527638,59459.0,59458.0,0.46068732]
[1617367513460,0.382638,59459.0,59458.0,0.51068732]
[1617367513654,0.00053323,59461.0,59458.0,0.51068732]
[1617367513858,0.00253323,59461.0,59458.0,1.05370732]
[1617367514055,0.00253323,59461.0,59458.0,1.20148732]
[1617367514256,0.00253323,59461.0,59459.0,0.1]
[1617367514454,0.00253323,59461.0,59460.0,0.05]
[1617367516284,0.00253323,59461.0,59460.0,0.1]
[1617367516481,0.00253323,59461.0,59460.0,0.19453476]
[1617367516683,0.00253323,59461.0,59460.0,0.10904]
[1617367516883,0.00253323,59461.0,59460.0,0.24194586]
[1617367517084,0.00253323,59461.0,59460.0,0.15904]
[1617367517284,0.00253323,59461.0,59460.0,0.24291436]
[1617367517486,0.00253323,59461.0,59460.0,0.15904]
[1617367517884,0.00253323,59461.0,59460.0,0.24154361]
[1617367518285,0.00253323,59461.0,59460.0,0.19154361]
[1617367518700,0.00253323,59461.0,59460.0,0.48654361]
[1617367519100,0.00253323,59461.0,59460.0,0.58654361]
[1617367519302,0.00253323,59461.0,59460.0,0.34154361]
[1617367519705,0.00253323,59461.0,59460.0,0.49392361]
[1617367521105,0.00253323,59461.0,59460.0,0.28250361]
[1617367521531,0.00253323,59461.0,59460.0,0.1805603]
[1617367522732,0.00253323,59461.0,59460.0,0.1305603]
[1617367522929,0.00253323,59461.0,59460.0,0.1805603]
[1617367524158,0.00253323,59461.0,59460.0,0.1305603]
[1617367529907,0.00253323,59461.0,59459.0,0.126161]
[1617367529908,0.33063609,59461.0,59459.0,0.126161]
[1617367530114,0.33063609,59461.0,59458.0,0.08182795]
[1617367530314,0.0012,59458.0,59449.0,0.168227]
[1617367530511,0.577677,59457.0,59450.0,0.07540404]
[1617367530912,0.57866282,59457.0,59450.0,0.07540404]
[1617367531309,0.57866282,59457.0,59450.0,0.12540404]
[1617367531310,0.00098582,59456.0,59450.0,0.12540404]
[1617367531506,0.135,59456.0,59450.0,0.12540404]
[1617367531709,0.03956085,59453.0,59450.0,0.12540404]
[1617367531935,0.252384,59452.0,59450.0,0.07540404]
[1617367532338,0.29194516,59452.0,59447.0,0.05]
[1617367532534,0.39858409,59452.0,59447.0,0.05]
[1617367532933,0.29194516,59452.0,59447.0,0.05]
[1617367533140,0.252384,59452.0,59447.0,0.05]
[1617367533334,0.14620173,59451.0,59447.0,0.12610624]
[1617367533734,0.03956126,59451.0,59447.0,0.12610624]
[1617367534143,0.252388,59450.0,59439.0,1.0194]
[1617367534566,0.01978162,59441.0,59440.0,0.07698694]
[1617367534764,0.03956381,59446.0,59440.0,0.07698694]
[1617367535161,0.1065774,59441.0,59440.0,0.12698694]
[1617367535363,0.01978205,59441.0,59440.0,0.12698694]
[1617367535764,0.01978205,59441.0,59440.0,0.07698694]
[1617367536163,0.03956384,59446.0,59440.0,0.07504363]
[1617367536560,0.03956384,59446.0,59441.0,0.05]
[1617367536756,0.03956384,59446.0,59440.0,0.07904363]
[1617367536960,0.01978201,59441.0,59440.0,0.07504363]
[1617367537186,0.0395639,59446.0,59440.0,0.07504363]
[1617367537383,0.0395639,59446.0,59440.0,0.12504363]
[1617367537590,0.0197818,59441.0,59440.0,0.07504363]
[1617367537990,0.07635,59442.0,59431.0,1.1234]
[1617367538190,0.01978398,59433.0,59432.0,0.0789872]
[1617367538585,0.36767088,59438.0,59432.0,0.0789872]
[1617367538793,0.36767088,59438.0,59424.0,0.00303724]
[1617367538794,0.387677,59433.0,59424.0,0.00303724]
[1617367538991,0.32810286,59432.0,59424.0,0.08407939]
[1617367539192,0.00296717,59427.0,59426.0,0.387677]
[1617367539389,0.01814802,59428.0,59426.0,0.46428194]
[1617367539583,0.00814802,59428.0,59426.0,0.46428194]
[1617367540034,0.252483,59431.0,59426.0,0.46428194]
[1617367540232,0.252483,59431.0,59426.0,0.07660494]
[1617367540428,0.252483,59431.0,59427.0,0.08120867]
[1617367540630,0.252483,59431.0,59429.0,0.07593065]
[1617367540879,0.00061522,59430.0,59422.0,0.164]
[1617367541080,0.00061522,59430.0,59423.0,0.32311532]
[1617367541287,0.00061522,59430.0,59423.0,0.97935232]
[1617367541482,0.00061522,59430.0,59423.0,0.372432]
[1617367541678,0.00061522,59430.0,59424.0,0.08291209]
[1617367541880,0.3271814,59430.0,59425.0,0.387671]
[1617367542083,0.3271814,59430.0,59425.0,0.08129661]
[1617367542280,0.3271814,59430.0,59426.0,0.07882434]
[1617367542480,0.00061522,59430.0,59427.0,0.08185362]
[1617367542678,0.3271814,59430.0,59429.0,0.07859394]
[1617367542884,0.38829222,59430.0,59421.0,0.9318]
[1617367543080,0.3271814,59430.0,59421.0,0.9318]
[1617367543283,0.00061522,59430.0,59422.0,0.07807772]
[1617367543480,0.252498,59426.0,59422.0,0.07807772]
[1617367543683,0.252498,59426.0,59423.0,0.387677]
[1617367544080,0.252498,59426.0,59420.0,0.16]
[1617367544479,0.252498,59426.0,59425.0,0.08378864]
[1617367544681,0.252498,59426.0,59420.0,0.286243]
[1617367544881,0.252498,59426.0,59422.0,0.07796287]
[1617367545080,0.387677,59425.0,59422.0,0.07796287]
[1617367546082,0.387677,59425.0,59420.0,0.176243]
[1617367546284,0.252498,59426.0,59420.0,0.126243]
[1617367546482,0.252498,59426.0,59420.0,0.130243]
[1617367546883,0.54104712,59427.0,59420.0,0.130243]
[1617367547084,0.54104712,59427.0,59423.0,0.164]
[1617367547488,0.54104712,59427.0,59426.0,1.874]
[1617367547689,0.54104712,59427.0,59426.0,0.214]
[1617367548285,0.54104712,59427.0,59426.0,0.164]
[1617367549888,0.54104712,59427.0,59423.0,0.387677]
[1617367550318,0.54104712,59427.0,59426.0,0.246191]
[1617367550518,0.54104712,59427.0,59422.0,0.370229]
[1617367550718,0.54104712,59427.0,59423.0,0.387677]
[1617367550913,0.54104712,59427.0,59422.0,0.366229]
[1617367551114,0.00194331,59425.0,59422.0,0.366229]
[1617367551715,0.00194331,59425.0,59422.0,0.126229]
[1617367551915,0.16571685,59424.0,59422.0,0.126229]
[1617367553336,0.387677,59423.0,59422.0,0.126229]
[1617367553534,0.637677,59423.0,59422.0,0.126229]
[1617367554741,0.387677,59421.0,59420.0,0.126243]
[1617367554934,0.827677,59421.0,59420.0,0.126243]
[1617367555333,0.387677,59421.0,59420.0,0.126243]
[1617367556414,0.38743728,59421.0,59420.0,0.121243]
[1617367557419,0.38743728,59421.0,59415.0,0.12626]
[1617367557420,0.0012,59420.0,59415.0,0.12626]
[1617367558225,0.25252,59419.0,59415.0,0.12626]
[1617367558626,0.00071685,59424.0,59415.0,0.12626]
[1617367558820,0.00071685,59424.0,59416.0,0.176]
[1617367559218,0.00071685,59424.0,59416.0,0.158]
[1617367559620,0.00071685,59424.0,59415.0,0.12626]
[1617367560221,0.03946013,59421.0,59415.0,0.12626]
[1617367560819,0.03859313,59421.0,59415.0,0.12626]
[1617367561018,0.10926115,59420.0,59416.0,0.36777]
[1617367561223,0.10927213,59423.0,59416.0,0.36777]
[1617367561419,0.10927213,59423.0,59417.0,0.155]
[1617367561618,0.10927213,59423.0,59417.0,0.159]
[1617367561818,0.10927213,59423.0,59418.0,0.018]
[1617367562421,0.10927213,59423.0,59417.0,0.004]
[1617367562422,0.10927213,59423.0,59417.0,0.022]
[1617367562622,0.10927213,59423.0,59418.0,0.387765]
[1617367562818,0.10927213,59423.0,59418.0,0.557765]
[1617367563020,0.00071436,59422.0,59419.0,0.017]
[1617367563221,0.10929629,59421.0,59419.0,0.017]
[1617367563439,0.10929629,59421.0,59420.0,0.226393]
[1617367563839,0.10929629,59421.0,59417.0,0.004]
[1617367564039,0.10929629,59421.0,59418.0,0.387765]
[1617367565244,0.10929629,59421.0,59417.0,0.004]
[1617367565449,0.00194331,59418.0,59414.0,0.130249]
[1617367565646,0.00194331,59418.0,59416.0,0.387765]
[1617367565848,0.10937352,59417.0,59416.0,0.387765]
[1617367566262,0.00194331,59418.0,59416.0,0.387765]
[1617367566462,0.00071436,59422.0,59416.0,0.387765]
[1617367566664,0.00071436,59422.0,59415.0,0.12626]
[1617367566665,0.1093689,59421.0,59415.0,0.12626]
[1617367567460,0.3618799,59421.0,59415.0,0.12626]
[1617367567662,0.10949315,59420.0,59415.0,0.12626]
[1617367568892,0.10945633,59421.0,59415.0,0.12626]
[1617367569095,0.252518,59418.0,59415.0,0.12626]
[1617367569291,0.10944435,59417.0,59415.0,0.12626]
[1617367569493,0.32209378,59416.0,59415.0,0.12626]
[1617367569694,0.70985878,59416.0,59406.0,0.9856]
[1617367569898,0.16,59415.0,59406.0,1.2256]
[1617367570092,0.16098635,59415.0,59407.0,0.387765]
[1617367570291,0.00098635,59415.0,59407.0,0.387765]
[1617367570696,0.252548,59413.0,59407.0,0.387765]
[1617367571362,0.252548,59413.0,59409.0,0.126274]
[1617367572562,0.252548,59413.0,59409.0,0.121274]
[1617367573966,0.000708,59412.0,59409.0,0.121274]
[1617367574169,0.000708,59412.0,59411.0,0.155]
[1617367574365,0.000708,59412.0,59411.0,0.542765]
[1617367574963,0.000708,59412.0,59411.0,0.437765]
[1617367575167,0.000708,59412.0,59411.0,0.387765]
[1617367576567,0.000708,59412.0,59411.0,0.601765]
[1617367576768,0.000708,59412.0,59411.0,0.751765]
[1617367576967,0.000708,59412.0,59411.0,0.537765]
[1617367577362,0.000708,59412.0,59411.0,0.387765]
[1617367579187,0.000708,59412.0,59409.0,0.121274]
[1617367580389,0.000708,59412.0,59410.0,0.387765]
[1617367580988,0.252555,59411.0,59410.0,0.387765]
[1617367583219,0.57464878,59411.0,59409.0,0.121274]
[1617367583421,0.135,59410.0,59409.0,0.121274]
[1617367583620,0.49660161,59410.0,59409.0,0.121274]
[1617367584648,0.10954356,59410.0,59409.0,0.121274]
[1617367585447,0.49730856,59410.0,59409.0,0.121274]
[1617367585647,0.66230856,59410.0,59409.0,0.121274]
[1617367586111,1.04119856,59410.0,59409.0,0.121274]
[1617367586706,1.04119856,59410.0,59409.0,0.116274]
[1617367586902,1.36329234,59410.0,59409.0,0.116274]
[1617367587504,1.36329234,59410.0,59402.0,0.126299]
[1617367587704,0.252598,59407.0,59402.0,0.126299]
[1617367587906,0.10866095,59406.0,59402.0,0.126299]
[1617367588502,0.10865087,59407.0,59402.0,0.126299]
[1617367589109,0.252598,59405.0,59402.0,0.126299]
[1617367589306,0.3139865,59404.0,59402.0,0.126299]
[1617367589509,0.387765,59403.0,59402.0,0.12435569]
[1617367589905,0.49818047,59403.0,59402.0,0.12435569]
[1617367590208,0.49818047,59403.0,59392.0,0.5]
[1617367590209,0.68818047,59403.0,59397.0,0.12631]
[1617367590606,0.15,59402.0,59397.0,0.12631]
[1617367590808,0.26181295,59402.0,59397.0,0.12631]
[1617367591010,0.11204666,59401.0,59397.0,0.12631]
[1617367591217,0.32209378,59400.0,59388.0,0.00303724]
[1617367591410,0.252643,59394.0,59387.0,0.16022]
[1617367591617,0.634373,59394.0,59387.0,0.00022]
[1617367591811,0.387765,59393.0,59387.0,0.00022]
[1617367592006,0.175,59392.0,59387.0,0.00022]
[1617367593229,0.00098104,59394.0,59387.0,0.40022]
[1617367593434,0.00098119,59395.0,59391.0,0.664]
[1617367593622,0.00098119,59395.0,59392.0,0.22673]
[1617367593821,0.00098119,59395.0,59391.0,0.714]
[1617367594223,0.0012,59404.0,59391.0,0.714]
[1617367594224,0.00098138,59399.0,59391.0,0.5]
[1617367594424,0.25359925,59398.0,59393.0,0.126295]
[1617367595040,0.38874608,59397.0,59393.0,0.126295]
[1617367595237,0.55874608,59397.0,59393.0,0.126295]
[1617367596039,0.252632,59396.0,59393.0,0.126295]
[1617367596237,0.387765,59395.0,59393.0,0.126295]
[1617367596440,0.627765,59395.0,59393.0,0.126295]
[1617367596641,0.00098108,59397.0,59393.0,0.126295]
[1617367597242,0.00098106,59399.0,59394.0,0.387765]
[1617367597471,0.00098089,59398.0,59393.0,0.126295]
[1617367597874,0.00098089,59398.0,59397.0,0.163]
[1617367598076,0.00098087,59399.0,59397.0,1.46170349]
[1617367598271,0.00098087,59399.0,59398.0,0.387737]
[1617367598471,0.00098087,59399.0,59398.0,0.682737]
[1617367598676,0.00830144,59400.0,59398.0,0.437737]
[1617367598677,0.00732059,59400.0,59398.0,0.437737]
[1617367599072,0.00732059,59400.0,59397.0,0.953]
[1617367599274,0.00732059,59400.0,59397.0,0.5]
[1617367599673,0.00633988,59400.0,59397.0,0.5]
[1617367601151,0.00633988,59400.0,59398.0,1.041765]
[1617367601360,0.00633988,59400.0,59399.0,4.11260709]
[1617367601557,0.00097876,59402.0,59401.0,0.3]
[1617367601765,0.00097857,59403.0,59401.0,4.678444]
[1617367601958,0.00195715,59404.0,59401.0,4.678444]
[1617367601959,0.0009787,59405.0,59404.0,0.3]
[1617367602155,0.0009787,59405.0,59404.0,0.687723]
[1617367602357,0.0009787,59405.0,59404.0,0.737723]
[1617367602556,0.0009787,59405.0,59404.0,1.157723]
[1617367602758,0.00195799,59405.0,59404.0,0.77]
[1617367602955,0.00195799,59405.0,59404.0,0.72]
[1617367603155,0.38081514,59418.0,59404.0,1.107765]
[1617367603353,0.05872136,59418.0,59404.0,0.3]
[1617367603754,0.05872136,59418.0,59404.0,0.38106]
[1617367603954,0.05872136,59418.0,59404.0,0.43106]
[1617367604151,0.05872136,59418.0,59404.0,0.38106]
[1617367604355,0.035,59417.0,59404.0,0.38106]
[1617367606152,0.287548,59417.0,59404.0,0.38106]
[1617367606351,0.00195693,59405.0,59404.0,0.38106]
[1617367606556,0.00195693,59405.0,59404.0,0.3]
[1617367606754,0.00195693,59405.0,59404.0,0.852765]
[1617367606953,0.00195693,59405.0,59404.0,1.17485878]
[1617367607154,0.00195693,59405.0,59404.0,1.41485878]
[1617367607352,0.00195693,59405.0,59404.0,1.91485878]
[1617367608166,0.00195693,59405.0,59404.0,1.592765]
[1617367608567,0.00195693,59405.0,59404.0,1.352765]
[1617367609571,0.00195693,59405.0,59404.0,0.8]
[1617367609772,0.287552,59415.0,59404.0,1.187765]
[1617367609773,0.05885362,59409.0,59404.0,1.187765]
[1617367609971,0.05885362,59409.0,59405.0,0.3704555]
[1617367609972,0.035,59408.0,59405.0,0.3704555]
[1617367610174,0.1084946,59407.0,59406.0,2.227]
[1617367610379,0.05956828,59410.0,59407.0,2.32]
[1617367610595,0.00070695,59410.0,59408.0,0.312765]
[1617367610792,0.00070695,59410.0,59408.0,0.412765]
[1617367610994,0.00070695,59410.0,59408.0,0.1]
[1617367611193,0.00070695,59410.0,59407.0,0.79497]
[1617367611794,0.00070695,59410.0,59407.0,0.55497]
[1617367611998,0.00070695,59410.0,59407.0,0.5]
[1617367613616,0.00070695,59410.0,59406.0,0.5]
[1617367614021,0.05953458,59410.0,59406.0,0.5]
[1617367614222,0.00070695,59410.0,59407.0,0.195]
[1617367614617,0.00070695,59410.0,59406.0,0.5]
[1617367616694,0.00070695,59410.0,59405.0,0.16]
[1617367616893,0.00070695,59410.0,59406.0,0.7072554]
[1617367617100,0.00070695,59410.0,59406.0,1.2072554]
[1617367617295,0.00070695,59410.0,59407.0,0.19]
[1617367617696,0.00070695,59410.0,59409.0,0.5]
[1617367617892,0.00070695,59410.0,59409.0,1.03779]
[1617367618294,0.00070695,59410.0,59409.0,0.6]
[1617367620300,0.00070695,59410.0,59409.0,0.757]
[1617367620502,0.00070695,59410.0,59409.0,0.6]
[1617367622108,0.66293008,59410.0,59409.0,0.5]
[1617367622309,0.66293008,59410.0,59403.0,0.5]
[1617367622506,0.38779,59408.0,59403.0,0.5]
[1617367623507,0.252594,59407.0,59404.0,0.1]
[1617367624332,0.00070695,59410.0,59409.0,3.35]
[1617367624543,0.05950069,59410.0,59409.0,3.950398]
[1617367624732,0.49351432,59422.0,59409.0,3.950398]
[1617367624733,0.15678332,59422.0,59410.0,4.39]
[1617367624935,0.26212375,59426.0,59415.0,0.006]
[1617367624936,0.15685819,59425.0,59415.0,0.006]
[1617367625131,0.26212375,59426.0,59415.0,0.006]
[1617367625132,0.1568938,59426.0,59415.0,0.006]
[1617367625529,0.1568938,59426.0,59416.0,0.00303724]
[1617367625730,0.54104712,59427.0,59419.0,0.004]
[1617367625931,0.11097115,59426.0,59423.0,0.252462]
[1617367626130,0.11097115,59426.0,59423.0,0.704753]
[1617367626346,0.11097115,59426.0,59424.0,0.1]
[1617367626544,0.11097115,59426.0,59425.0,0.165]
[1617367627344,0.10097115,59426.0,59424.0,0.1]
[1617367628146,0.54104712,59427.0,59423.0,0.452291]
[1617367628544,0.00073461,59426.0,59423.0,0.452291]
[1617367629003,0.00073461,59426.0,59425.0,0.153]
[1617367629213,0.49228834,59427.0,59426.0,4.45]
[1617367629411,0.32402134,59427.0,59426.0,4.60572]
[1617367629601,0.15575434,59427.0,59426.0,4.60572]
[1617367629804,0.15575434,59427.0,59426.0,4.99572]
[1617367630008,0.168,59453.0,59427.0,3.65]
[1617367630215,0.168,59453.0,59434.0,0.06731064]
[1617367630216,0.0012,59446.0,59434.0,0.06731064]
[1617367630405,0.0012,59446.0,59438.0,0.126201]
[1617367630610,0.0012,59446.0,59438.0,0.442901]
[1617367631264,0.0012,59446.0,59439.0,0.1]
[1617367632517,0.6865,59454.0,59453.0,0.165]
[1617367632715,1.07629,59454.0,59453.0,0.68041]
[1617367632911,1.23629,59454.0,59453.0,0.68041]
[1617367633107,1.23629,59454.0,59453.0,0.51541]
[1617367633308,1.07629,59454.0,59453.0,0.51541]
[1617367633511,1.07629,59454.0,59453.0,0.41541]
[1617367634113,1.25,59453.0,59452.0,0.11861435]
[1617367634331,1.9553821,59453.0,59452.0,0.07022]
[1617367634528,0.38779,59452.0,59441.0,0.1]
[1617367634728,1.03759576,59452.0,59442.0,0.0052]
[1617367634928,2.03259576,59452.0,59442.0,0.0052]
[1617367635128,0.38779,59450.0,59442.0,0.0052]
[1617367635331,0.77273374,59450.0,59442.0,0.0052]
[1617367635528,1.03060457,59450.0,59449.0,0.154]
[1617367635734,0.64566083,59450.0,59449.0,0.154]
[1617367635929,0.92279,59450.0,59449.0,0.05]
[1617367636127,0.92279,59450.0,59447.0,0.05504]
[1617367636530,0.38779,59448.0,59447.0,0.05504]
[1617367636958,0.71474579,59448.0,59447.0,0.05504]
[1617367637357,0.71279,59448.0,59447.0,0.05504]
[1617367638355,0.71279,59448.0,59444.0,0.205]
[1617367638555,0.00097834,59447.0,59444.0,0.205]
[1617367639355,0.00065693,59446.0,59441.0,0.1]
[1617367640180,0.00065693,59446.0,59442.0,0.38779]
[1617367640379,0.00065693,59446.0,59441.0,0.1]
[1617367641382,0.00065693,59446.0,59445.0,0.164]
[1617367641983,0.00065693,59446.0,59445.0,0.1638]
[1617367642608,0.00065693,59446.0,59445.0,0.55159]
[1617367643007,0.00065693,59446.0,59445.0,0.89659]
[1617367643408,0.00065693,59446.0,59445.0,0.1]
[1617367644009,0.00065693,59446.0,59444.0,0.226189]
[1617367644209,0.00065693,59446.0,59444.0,0.126189]
[1617367644407,0.00065693,59446.0,59444.0,0.226189]
[1617367644610,0.0009789,59445.0,59444.0,0.226189]
[1617367645033,0.0009789,59445.0,59444.0,0.390189]
[1617367645233,0.0009789,59445.0,59444.0,0.962979]
[1617367646307,0.0009789,59445.0,59444.0,1.012979]
[1617367646506,0.0009789,59445.0,59444.0,0.663979]
[1617367648308,0.0009789,59445.0,59444.0,0.23903526]
[1617367648513,0.00065693,59446.0,59444.0,0.29216526]
[1617367648712,0.00065693,59446.0,59445.0,2.405117]
[1617367648914,0.00065693,59446.0,59445.0,1.06106074]
[1617367649116,0.00065693,59446.0,59445.0,0.661117]
[1617367649313,0.00065693,59446.0,59445.0,0.761117]
[1617367649710,0.00065693,59446.0,59445.0,0.61]
[1617367650113,0.00065693,59446.0,59445.0,0.37]
[1617367650711,0.00065693,59446.0,59445.0,0.583973]
[1617367650911,0.00065693,59446.0,59445.0,2.61891674]
[1617367651112,0.00065693,59446.0,59445.0,2.85891674]
[1617367651309,0.00065693,59446.0,59445.0,2.458973]
[1617367651510,0.00065693,59446.0,59445.0,0.988973]
[1617367651910,0.00065693,59446.0,59445.0,3.24891674]
[1617367652111,0.00065693,59446.0,59445.0,1.38891674]
[1617367652315,0.00065693,59446.0,59445.0,0.988973]
[1617367652510,0.00065693,59446.0,59445.0,0.748973]
[1617367652911,0.00065693,59446.0,59445.0,0.583973]
[1617367653112,0.00065693,59446.0,59445.0,0.836335]
[1617367653717,0.00065693,59446.0,59445.0,0.622362]
[1617367654314,0.00065693,59446.0,59445.0,0.836335]
[1617367654520,0.00065693,59446.0,59445.0,0.352362]
[1617367654721,0.00065693,59446.0,59441.0,0.9293]
[1617367654918,0.00261618,59446.0,59441.0,0.9293]
[1617367655339,0.00097943,59444.0,59442.0,0.213984]
[1617367655938,0.00097943,59444.0,59442.0,0.313984]
[1617367656339,0.00261618,59446.0,59442.0,0.1]
[1617367656540,0.00065693,59446.0,59445.0,2.10292643]
[1617367656738,0.00065693,59446.0,59445.0,0.86]
[1617367656939,0.00065693,59446.0,59445.0,0.1]
[1617367657738,0.00065693,59446.0,59442.0,0.1]
[1617367658167,0.00065693,59446.0,59443.0,0.252377]
[1617367658969,0.00065693,59446.0,59444.0,0.213976]
[1617367659368,0.00065693,59446.0,59444.0,0.313976]
[1617367659565,0.00065693,59446.0,59444.0,0.1]
[1617367660370,0.00065693,59446.0,59443.0,0.252377]
[1617367660589,0.00065693,59446.0,59444.0,0.213977]
[1617367660789,0.00065693,59446.0,59444.0,0.313977]
[1617367660992,0.00065693,59446.0,59444.0,0.1]
[1617367661842,0.00065693,59446.0,59443.0,0.252377]
[1617367662644,0.00065693,59446.0,59445.0,0.285]
[1617367662843,0.00065693,59446.0,59445.0,0.498973]
[1617367663245,0.00065693,59446.0,59445.0,0.598973]
[1617367663441,0.00065693,59446.0,59445.0,0.1]
[1617367664247,0.00065693,59446.0,59444.0,0.1]
[1617367664444,0.00065693,59446.0,59445.0,1.663973]
[1617367664643,0.00065693,59446.0,59444.0,0.1]
[1617367664845,0.00065693,59446.0,59445.0,0.213973]
[1617367665247,0.00065693,59446.0,59444.0,0.1]
[1617367665445,0.00065693,59446.0,59444.0,0.095]
[1617367666149,0.00065693,59446.0,59443.0,0.252377]
[1617367668365,0.51474769,59445.0,59443.0,0.252377]
[1617367669366,0.51474769,59445.0,59443.0,0.245377]
[1617367670365,0.51474769,59445.0,59444.0,0.213976]
[1617367670764,0.51474769,59445.0,59444.0,0.313976]
[1617367670988,0.51474769,59445.0,59444.0,0.1]
[1617367671786,0.51543631,59445.0,59443.0,0.245377]
[1617367672186,0.10079965,59444.0,59443.0,0.245377]
[1617367672987,0.09579965,59444.0,59443.0,0.245377]
[1617367673616,0.48351965,59444.0,59443.0,0.245377]
[1617367673815,0.66851965,59444.0,59443.0,0.245377]
[1617367674214,0.86851965,59444.0,59443.0,0.245377]
[1617367675419,0.66851965,59444.0,59443.0,0.245377]
[1617367675819,0.86851965,59444.0,59443.0,0.245377]
[1617367676330,0.66851965,59444.0,59443.0,0.245377]
[1617367676535,0.66351965,59444.0,59443.0,0.245377]
[1617367676732,0.86351965,59444.0,59443.0,0.245377]
[1617367676933,0.66351965,59444.0,59443.0,0.245377]
[1617367677137,0.86351965,59444.0,59443.0,0.245377]
[1617367677529,0.66351965,59444.0,59443.0,0.245377]
[1617367678733,0.27579965,59444.0,59443.0,0.245377]
[1617367679348,0.66351965,59444.0,59443.0,0.245377]
[1617367680149,0.86351965,59444.0,59443.0,0.245377]
[1617367680951,0.66351965,59444.0,59443.0,0.245377]
[1617367681150,0.86351965,59444.0,59443.0,0.245377]
[1617367681981,0.66351965,59444.0,59443.0,0.245377]
[1617367682183,0.27579965,59444.0,59443.0,0.696067]
[1617367682381,0.27579965,59444.0,59443.0,0.796067]
[1617367682581,0.27652542,59444.0,59443.0,0.796067]
[1617367682781,0.47652542,59444.0,59443.0,0.796067]
[1617367682980,0.47652542,59444.0,59443.0,0.55069]
[1617367683381,0.66424542,59444.0,59443.0,0.55069]
[1617367683778,0.86424542,59444.0,59443.0,0.55069]
[1617367683984,0.66424542,59444.0,59443.0,0.55069]
[1617367684799,0.86424542,59444.0,59443.0,0.55069]
[1617367685201,0.66424542,59444.0,59443.0,0.55069]
[1617367685600,0.86424542,59444.0,59443.0,0.55069]
[1617367687226,0.86424542,59444.0,59443.0,0.45069]
[1617367687427,0.66424542,59444.0,59442.0,0.252378]
[1617367687628,0.66772,59443.0,59442.0,0.252378]
[1617367687825,0.76815483,59443.0,59442.0,0.252378]
[1617367689228,0.96815483,59443.0,59442.0,0.252378]
[1617367689452,0.76815483,59443.0,59442.0,0.252378]
[1617367691053,0.96815483,59443.0,59442.0,0.252378]
[1617367691948,0.96815483,59443.0,59442.0,0.246703]
[1617367693189,0.126194,59441.0,59435.0,0.004]
[1617367693390,0.336194,59440.0,59435.0,0.004]
[1617367693596,0.43663441,59440.0,59431.0,0.1048]
[1617367693790,0.28543287,59439.0,59432.0,1.0]
[1617367693992,0.28543287,59439.0,59433.0,0.214025]
[1617367694189,0.10043287,59439.0,59434.0,0.1]
[1617367694389,0.1002823,59438.0,59434.0,0.1]
[1617367694588,0.10027285,59439.0,59434.0,0.1]
[1617367694997,0.10027285,59439.0,59436.0,0.252388]
[1617367695401,0.10027285,59439.0,59437.0,0.214012]
[1617367696397,0.10027285,59439.0,59437.0,0.575422]